bitfinex/quotes_SOLUSD_20241126
["timestamp","ask_amount","ask_price","bid_price","bid_amount"]
[1732642552407,3.22940235,231.66,231.62,17.73341146]
[1732642552608,5.38170153,231.71,231.62,17.73341146]
[1732642552609,3.22940235,231.65,231.62,17.73341146]
[1732642552825,3.22940235,231.64,231.62,17.73341146]
[1732642553007,5.16643347,231.67,231.62,17.73341146]
[1732642553207,8.39585946,231.66,231.62,17.73341146]
[1732642553412,5.38170153,231.7,231.62,17.73341146]
[1732642553413,3.22942599,231.65,231.62,17.73341146]
[1732642553600,3.22942599,231.64,231.62,17.73341146]
[1732642553803,5.16643347,231.67,231.62,17.73341146]
[1732642554016,3.22945644,231.66,231.62,17.73341146]
[1732642554220,3.22945644,231.65,231.62,17.73341146]
[1732642554403,3.22945644,231.64,231.62,17.73341146]
[1732642554606,5.16711623,231.67,231.62,12.90799991]
[1732642554923,3.22939919,231.66,231.62,12.90799991]
[1732642555129,3.22939919,231.65,231.62,4.3174]
[1732642555308,3.22939919,231.65,231.61,4.3176]
[1732642555515,8.3964379,231.64,231.58,8.59059991]
[1732642555707,8.59059991,231.65,231.58,8.59059991]
[1732642555913,8.39751533,231.64,231.58,8.59059991]
[1732642556114,8.59059991,231.65,231.59,4.3179]
[1732642556606,5.16789793,231.64,231.59,4.3179]
[1732642556806,5.16789793,231.63,231.59,4.3179]
[1732642557129,5.16789793,231.63,231.56,4.3185]
[1732642557130,11.82053611,231.62,231.56,4.3185]
[1732642557324,8.59059991,231.6,231.52,8.59059991]
[1732642557505,8.59059991,231.6,231.53,8.59059991]
[1732642558123,8.39780086,231.59,231.54,4.3189]
[1732642558357,3.22990293,231.58,231.54,12.90949991]
[1732642558516,3.22990293,231.57,231.54,4.3189]
[1732642558718,3.22990293,231.59,231.55,23.776884]
[1732642558913,3.22917468,231.62,231.58,8.59059991]
[1732642559133,3.22917468,231.61,231.59,8.59059991]
[1732642559319,5.16789793,231.66,231.59,8.59059991]
[1732642559515,8.39684853,231.65,231.59,8.59059991]
[1732642559726,8.39684853,231.64,231.59,8.59059991]
[1732642559920,3.2289506,231.63,231.58,8.59059991]
[1732642560129,3.2289506,231.62,231.58,8.59059991]
[1732642560431,3.2289506,231.61,231.58,8.59059991]
[1732642560626,5.16627688,231.64,231.58,8.59059991]
[1732642560930,8.39540815,231.63,231.59,8.59059991]
[1732642561134,3.22913127,231.62,231.61,8.59059991]
[1732642561428,8.59059991,231.7,231.61,8.59059991]
[1732642561632,5.38158701,231.67,231.57,23.776884]
[1732642561831,11.62405622,231.66,231.57,23.776884]
[1732642562012,8.39510402,231.65,231.58,4.3181]
[1732642562210,8.39510402,231.64,231.62,8.59059991]
[1732642562410,3.22888616,231.63,231.62,8.59059991]
[1732642563638,3.22888616,231.63,231.6,8.59059991]
[1732642563838,3.22888616,231.62,231.6,8.59059991]
[1732642564131,5.16621786,231.65,231.61,4.3176]
[1732642564332,3.22869316,231.64,231.61,4.3176]
[1732642564533,3.22869316,231.63,231.61,4.3176]
[1732642564728,5.16621786,231.65,231.61,4.3176]
[1732642564937,3.22870114,231.64,231.61,4.3176]
[1732642565237,3.22872502,231.63,231.59,8.59059991]
[1732642565531,3.22872502,231.62,231.59,8.59059991]
[1732642565735,5.16596004,231.64,231.59,8.59059991]
[1732642566038,3.228897,231.63,231.6,4.3177]
[1732642566342,3.228897,231.62,231.6,4.3177]
[1732642566631,5.16596004,231.65,231.61,8.59059991]
[1732642566934,3.22870458,231.64,231.61,8.59059991]
[1732642567133,3.22870458,231.63,231.61,8.59059991]
[1732642567333,3.22870458,231.62,231.61,8.59059991]
[1732642568030,3.22870458,231.62,231.59,23.776884]
[1732642568334,5.16596004,231.64,231.59,32.36748391]
[1732642568532,3.2286841,231.63,231.61,8.59059991]
[1732642568735,3.22871344,231.62,231.61,31.30619991]
[1732642568916,5.16594151,231.68,231.61,31.30619991]
[1732642569120,8.39455016,231.67,231.61,31.30619991]
[1732642571516,3.22841529,231.66,231.65,8.59059991]
[1732642571916,3.22841529,231.66,231.63,12.90779991]
[1732642572111,3.2284196,231.65,231.61,33.5095]
[1732642572420,5.16547136,231.68,231.64,8.59059991]
[1732642572628,8.39391544,231.67,231.64,8.59059991]
[1732642572926,3.22844408,231.66,231.64,8.59059991]
[1732642573118,3.22844408,231.65,231.64,8.59059991]
[1732642573318,3.22844408,231.65,231.63,8.59059991]
[1732642573518,13.75607127,231.67,231.62,4.3174]
[1732642573740,8.59059991,231.65,231.57,8.59059991]
[1732642574033,8.59059991,231.65,231.56,4.3185]
[1732642574034,3.22915426,231.64,231.56,4.3185]
[1732642574220,8.59059991,231.61,231.5,15.465]
[1732642574414,8.59059991,231.58,231.5,15.465]
[1732642574630,3.22915426,231.57,231.51,8.59059991]
[1732642574940,8.59059991,231.59,231.51,8.59059991]
[1732642575118,3.22998895,231.58,231.51,8.59059991]
[1732642575313,3.22998895,231.57,231.51,8.59059991]
[1732642575627,3.22998895,231.56,231.52,4.3192]
[1732642575938,5.16547136,231.59,231.52,4.3192]
[1732642576242,5.16547136,231.59,231.48,8.59059991]
[1732642576243,8.59059991,231.56,231.48,8.59059991]
[1732642576924,3.22952115,231.55,231.48,8.59059991]
[1732642577125,8.59059991,231.56,231.48,8.59059991]
[1732642577325,3.22836204,231.55,231.48,8.59059991]
[1732642577519,8.59059991,231.56,231.49,4.3198]
[1732642577718,3.22836597,231.55,231.49,4.3198]
[1732642577923,8.59059991,231.58,231.5,8.59059991]
[1732642578125,3.22811426,231.57,231.5,8.59059991]
[1732642578447,3.22811426,231.56,231.55,8.59059991]
[1732642579636,5.16324991,231.61,231.55,12.90929991]
[1732642579940,8.38964399,231.6,231.55,12.90929991]
[1732642580141,3.22639408,231.59,231.55,12.90929991]
[1732642580440,3.22639408,231.58,231.56,13.42990841]
[1732642580632,2.16026866,231.63,231.56,13.42990841]
[1732642580633,5.16206212,231.61,231.56,13.42990841]
[1732642580854,5.16206212,231.61,231.48,18.42990841]
[1732642580855,13.42990841,231.58,231.5,13.42990841]
[1732642581021,3.22632711,231.57,231.51,33.42990841]
[1732642581339,3.22632711,231.56,231.53,13.42990841]
[1732642581544,5.16173625,231.6,231.53,13.42990841]
[1732642581736,8.38783502,231.59,231.54,17.74880841]
[1732642582035,8.38783502,231.58,231.55,13.42990841]
[1732642582213,3.22578395,231.57,231.54,4.3189]
[1732642582413,3.22578395,231.56,231.54,4.3189]
[1732642582640,5.16118886,231.58,231.54,4.3189]
[1732642582827,3.22567543,231.57,231.54,4.3189]
[1732642583028,3.22567543,231.56,231.53,4.319]
[1732642583213,3.22567543,231.55,231.53,4.319]
[1732642583417,5.16112591,231.58,231.53,4.319]
[1732642583619,8.38670737,231.57,231.53,4.319]
[1732642583834,3.22561998,231.56,231.53,4.319]
[1732642584038,3.22561998,231.55,231.53,4.319]
[1732642584238,5.16108739,231.57,231.53,4.319]
[1732642584439,3.22554475,231.56,231.53,4.319]
[1732642584642,3.22554475,231.55,231.53,4.319]
[1732642584849,13.42990841,231.6,231.53,4.319]
[1732642585046,8.38632026,231.59,231.53,4.319]
[1732642585343,3.22550779,231.58,231.56,13.42990841]
[1732642585544,3.22550779,231.57,231.56,13.42990841]
[1732642585842,3.22509879,231.57,231.52,20.0]
[1732642586053,3.22524734,231.56,231.52,24.3192]
[1732642586347,3.22524734,231.55,231.52,4.3192]
[1732642586649,5.1603725,231.57,231.52,4.3192]
[1732642586839,3.22523838,231.56,231.52,4.3192]
[1732642587033,3.22523838,231.55,231.52,4.3192]
[1732642587239,3.22523838,231.54,231.52,4.3192]
[1732642587418,5.15994649,231.57,231.52,4.3192]
[1732642587620,3.22496516,231.56,231.52,4.3192]
[1732642587821,3.22496516,231.55,231.52,4.3192]
[1732642588126,3.22496516,231.54,231.51,4.3194]
[1732642588330,5.15957605,231.57,231.51,4.3194]
[1732642588648,3.22473442,231.56,231.51,4.3194]
[1732642588821,3.22473442,231.55,231.51,4.3194]
[1732642589017,5.1595794,231.57,231.51,4.3194]
[1732642589222,16.65467738,231.56,231.51,4.3194]
[1732642589424,13.42990841,231.54,231.49,4.3197]
[1732642589827,3.22466301,231.53,231.49,4.3197]
[1732642590129,13.42990841,231.56,231.49,4.3197]
[1732642590330,3.22432524,231.55,231.49,4.3197]
[1732642590538,3.22432524,231.54,231.49,4.3197]
[1732642590740,3.22432524,231.53,231.49,4.3197]
[1732642591046,5.15892038,231.55,231.49,4.3197]
[1732642591226,13.42990841,231.56,231.49,4.3197]
[1732642591227,3.22399457,231.54,231.49,4.3197]
[1732642591427,3.22399457,231.53,231.49,4.3197]
[1732642591633,18.58882879,231.56,231.49,4.3197]
[1732642591848,3.22402948,231.55,231.49,4.3197]
[1732642592149,3.22402948,231.54,231.5,13.42990841]
[1732642592348,5.15822938,231.57,231.5,13.42990841]
[1732642592540,8.38207668,231.56,231.5,13.42990841]
[1732642592754,3.2238473,231.55,231.5,13.42990841]
[1732642593048,3.2238473,231.54,231.5,13.42990841]
[1732642593440,5.15822938,231.57,231.51,4.3194]
[1732642593635,8.38202249,231.56,231.51,4.3194]
[1732642593954,3.22379311,231.55,231.48,37.74980841]
[1732642594260,16.65370152,231.54,231.48,24.3199]
[1732642594439,3.22379311,231.53,231.48,24.3199]
[1732642594628,13.42990841,231.54,231.48,24.3199]
[1732642594830,3.2237272,231.53,231.48,24.3199]
[1732642595037,13.42990841,231.54,231.48,24.3199]
[1732642595244,3.22353736,231.53,231.48,24.3199]
[1732642595453,13.42990841,231.54,231.48,24.3199]
[1732642595645,3.22369973,231.53,231.48,24.3199]
[1732642595863,13.42990841,231.54,231.48,24.3199]
[1732642596147,3.22369973,231.53,231.48,24.3199]
[1732642596454,13.42990841,231.54,231.48,24.3199]
[1732642596647,3.22370275,231.53,231.48,24.3199]
[1732642596840,13.42990841,231.54,231.48,24.3199]
[1732642597039,13.42990841,231.52,231.44,13.42990841]
[1732642597237,13.42990841,231.5,231.42,13.42990841]
[1732642597941,4.3191,231.53,231.46,13.42990841]
[1732642598136,3.22389408,231.52,231.46,13.42990841]
[1732642598364,3.22389408,231.51,231.46,13.42990841]
[1732642598534,9.47733053,231.53,231.46,13.42990841]
[1732642598730,3.22358163,231.52,231.46,13.42990841]
[1732642598937,3.22358163,231.51,231.46,17.75010841]
[1732642599131,9.47733053,231.53,231.46,17.75010841]
[1732642599343,3.22331336,231.52,231.46,4.3202]
[1732642599529,3.22331336,231.51,231.46,4.3202]
[1732642599849,13.42990841,231.52,231.46,4.3202]
[1732642600052,3.22341228,231.51,231.45,4.3205]
[1732642600231,13.42990841,231.52,231.45,4.3205]
[1732642600431,3.22334069,231.51,231.45,12.92427388]
[1732642600953,12.92287388,231.53,231.45,12.92427388]
[1732642601158,3.22335211,231.52,231.45,12.92427388]
[1732642601333,3.22335211,231.51,231.45,12.92427388]
[1732642601534,12.92287388,231.53,231.45,12.92427388]
[1732642601843,3.22294299,231.52,231.45,12.92427388]
[1732642602044,3.22294299,231.51,231.45,12.92427388]
[1732642602346,12.92287388,231.53,231.45,12.92427388]
[1732642602649,3.22261705,231.52,231.45,12.92427388]
[1732642602831,3.22261705,231.51,231.45,12.92427388]
[1732642603029,4.3192,231.52,231.45,12.92427388]
[1732642603260,3.22262508,231.51,231.45,12.92427388]
[1732642603451,4.3192,231.52,231.39,16.2761]
[1732642603452,8.60377388,231.47,231.39,16.2761]
[1732642603749,8.60377388,231.48,231.39,24.87987388]
[1732642603959,8.60377388,231.48,231.41,8.60377388]
[1732642605147,8.60377388,231.48,231.42,4.3211]
[1732642605335,3.22176198,231.47,231.42,4.3211]
[1732642605533,11.82553586,231.46,231.39,16.2761]
[1732642605760,8.60377388,231.46,231.39,24.87987388]
[1732642606060,3.22187424,231.45,231.39,24.87987388]
[1732642606241,8.60377388,231.46,231.39,24.87987388]
[1732642606443,3.22086421,231.45,231.39,8.60377388]
[1732642606763,8.60377388,231.46,231.39,12.92537388]
[1732642607260,3.22086014,231.45,231.39,12.92537388]
[1732642607461,3.21971887,231.46,231.39,12.92537388]
[1732642607637,3.21973432,231.45,231.39,12.92537388]
[1732642607833,13.75973109,231.47,231.39,12.92537388]
[1732642608060,3.21973446,231.46,231.39,12.92537388]
[1732642608260,13.75973109,231.47,231.39,12.92537388]
[1732642608261,3.21973446,231.45,231.39,12.92537388]
[1732642608455,3.21973446,231.46,231.39,12.92537388]
[1732642609660,3.21973446,231.46,231.44,8.60377388]
[1732642609842,8.60377388,231.47,231.39,4.3216]
[1732642610260,3.21743101,231.46,231.39,4.3216]
[1732642610439,8.60377388,231.45,231.37,20.0]
[1732642610644,4.32,231.48,231.34,15.9476]
[1732642610645,8.60377388,231.42,231.35,12.92617388]
[1732642612337,12.92457388,231.44,231.35,12.92617388]
[1732642612538,3.21581916,231.43,231.35,12.92617388]
[1732642612872,3.21581916,231.43,231.41,8.60377388]
[1732642613038,13.75182031,231.47,231.41,8.60377388]
[1732642613039,3.21570061,231.46,231.41,8.60377388]
[1732642613434,3.21570061,231.47,231.41,8.60377388]
[1732642613640,3.21570061,231.48,231.41,8.60377388]
[1732642613840,3.21469486,231.48,231.42,4.3211]
[1732642614364,3.21469486,231.48,231.43,8.60377388]
[1732642614567,3.21469486,231.49,231.43,8.60377388]
[1732642614859,3.21469486,231.5,231.43,8.60377388]
[1732642615079,8.60377388,231.49,231.42,4.3211]
[1732642615257,3.21469486,231.48,231.42,4.3211]
[1732642617950,3.21469486,231.48,231.42,12.92487388]
[1732642618141,16.75512477,231.54,231.44,8.60377388]
[1732642618142,16.96198052,231.52,231.44,8.60377388]
[1732642618339,3.21469486,231.51,231.46,8.60377388]
[1732642618548,3.21469486,231.5,231.46,8.60377388]
[1732642618758,3.21469486,231.49,231.46,8.60377388]
[1732642618960,3.21469486,231.48,231.46,8.60377388]
[1732642619161,3.21469486,231.47,231.46,12.92397388]
[1732642619346,3.21469486,231.5,231.46,12.92397388]
[1732642619556,3.21469486,231.49,231.46,4.3202]
[1732642619869,3.21469486,231.49,231.44,8.60377388]
[1732642619870,3.21469486,231.48,231.41,10.8029]
[1732642620042,3.21469486,231.47,231.41,8.60377388]
[1732642620243,3.21469486,231.49,231.41,8.60377388]
[1732642620456,4.3196,231.51,231.4,20.0]
[1732642620457,3.21469486,231.48,231.43,8.60377388]
[1732642620650,3.21903379,231.47,231.43,8.60377388]
[1732642620855,8.60377388,231.49,231.41,8.60377388]
[1732642621061,4.32,231.48,231.41,12.92497388]
[1732642621264,8.60377388,231.47,231.41,4.3212]
[1732642621639,3.21928075,231.46,231.41,4.3212]
[1732642622248,3.21928075,231.46,231.4,4.3214]
[1732642622447,11.82305463,231.45,231.38,4.3218]
[1732642622645,8.60377388,231.45,231.38,4.3218]
[1732642622843,3.21959807,231.44,231.38,4.3218]
[1732642623056,3.21959807,231.43,231.38,4.3218]
[1732642623388,3.21959807,231.42,231.38,4.3218]
[1732642623676,3.21959807,231.42,231.36,4.3222]
[1732642624171,3.21959807,231.42,231.34,15.9476]
[1732642624348,13.45851581,231.4,231.34,4.3225]
[1732642625244,13.45851581,231.4,231.32,13.45851581]
[1732642625445,13.45851581,231.4,231.33,4.3228]
[1732642626271,17.78011581,231.4,231.33,4.3228]
[1732642626474,3.2185989,231.39,231.33,4.3228]
[1732642626770,13.45851581,231.38,231.31,4.323]
[1732642627062,17.78011581,231.4,231.32,13.45851581]
[1732642627255,3.21882994,231.39,231.33,4.3228]
[1732642627463,3.21882994,231.39,231.32,13.45851581]
[1732642627643,13.45851581,231.38,231.3,13.45851581]
[1732642628962,13.45851581,231.38,231.31,4.3232]
[1732642629164,17.78051581,231.38,231.31,4.3232]
[1732642629366,5.14857645,231.43,231.31,4.3232]
[1732642629367,4.3209,231.43,231.31,4.3232]
[1732642629567,13.45851581,231.38,231.31,4.3232]
[1732642629780,13.45851581,231.38,231.21,23.33543895]
[1732642629781,13.45851581,231.34,231.26,13.45851581]
[1732642630289,13.45851581,231.32,231.24,17.78301581]
[1732642630587,13.45851581,231.3,231.24,4.3245]
[1732642630760,13.45851581,231.3,231.22,13.45851581]
[1732642630961,13.45851581,231.3,231.23,4.3246]
[1732642631671,3.21615868,231.29,231.23,4.3246]
[1732642632567,3.21615868,231.29,231.24,13.45851581]
[1732642632772,3.21615868,231.3,231.24,13.45851581]
[1732642632974,18.6043697,231.32,231.24,13.45851581]
[1732642632975,3.21615868,231.31,231.24,13.45851581]
[1732642633586,3.21615868,231.31,231.24,17.78281581]
[1732642634296,3.21615868,231.31,231.26,13.45851581]
[1732642635173,13.45851581,231.3,231.24,4.3243]
[1732642635490,17.78151581,231.32,231.24,17.78281581]
[1732642635690,3.20960385,231.31,231.24,17.78281581]
[1732642635990,3.20960385,231.31,231.18,27.1811]
[1732642635991,13.45851581,231.3,231.22,17.78331581]
[1732642636192,13.45851581,231.3,231.18,27.1811]
[1732642636193,13.45851581,231.28,231.21,4.325]
[1732642636377,3.21026637,231.27,231.21,4.325]
[1732642636576,13.45851581,231.22,231.12,15.7971148]
[1732642636799,13.45851581,231.19,231.12,4.8499148]
[1732642636964,13.45851581,231.15,231.12,0.5232148]
[1732642637169,20.0,231.21,231.12,0.5232148]
[1732642637170,13.45851581,231.13,231.12,0.5232148]
[1732642637666,17.78501581,231.13,231.12,0.5232148]
[1732642638164,26.11440974,231.13,231.12,0.5232148]
[1732642638365,13.45851581,231.13,231.12,0.5232148]
[1732642638889,16.65460026,231.13,231.12,0.5232148]
[1732642639076,53.89000007,231.13,231.12,0.5232148]
[1732642639275,58.89000007,231.13,231.12,0.5232148]
[1732642639978,45.53651516,231.13,231.12,0.5232148]
[1732642640180,21.75963116,231.13,231.12,0.5232148]
[1732642640481,53.89000007,231.13,231.12,0.5232148]
[1732642640912,25.0,231.1,230.96,4.3296]
[1732642641092,13.45851581,231.04,230.96,17.78811581]
[1732642641387,13.45851581,231.09,231.02,13.45851581]
[1732642642578,17.78571581,231.1,231.02,13.45851581]
[1732642642780,37.78541581,231.12,231.04,13.45851581]
[1732642643279,13.45851581,231.11,231.04,13.45851581]
[1732642643471,33.45851581,231.12,231.04,13.45851581]
[1732642643673,13.45851581,231.11,231.04,13.45851581]
[1732642643868,13.45851581,231.11,231.03,17.78691581]
[1732642644090,13.45851581,231.1,231.03,17.78691581]
[1732642644683,13.45851581,231.11,231.04,13.45851581]
[1732642645385,13.45851581,231.11,231.04,17.78661581]
[1732642646994,13.45851581,231.11,231.04,13.45851581]
[1732642647973,13.45851581,231.1,231.03,17.78681581]
[1732642648175,13.45851581,231.04,230.97,13.45851581]
[1732642648592,43.38531581,231.12,230.97,13.45851581]
[1732642648593,13.45851581,231.05,230.97,13.45851581]
[1732642648797,13.45851581,231.06,230.98,13.45851581]
[1732642650190,17.78641581,231.06,230.98,17.78781581]
[1732642651695,13.45851581,231.02,230.95,21.9359]
[1732642651890,13.45851581,231.0,230.93,4.3303]
[1732642652394,13.45851581,231.01,230.93,17.78881581]
[1732642655209,13.45851581,230.99,230.93,4.3303]
[1732642655408,4.3289,231.01,230.89,17.7755148]
[1732642655409,13.45851581,230.95,230.89,0.5232148]
[1732642655596,13.45851581,230.95,230.89,4.8541148]
[1732642655921,7.58342814,230.99,230.89,0.5232148]
[1732642655922,13.45851581,230.91,230.89,0.5232148]
[1732642657184,17.78891581,230.93,230.89,0.5232148]
[1732642657486,13.45851581,230.93,230.89,0.5232148]
[1732642658087,17.78881581,230.93,230.89,0.5232148]
[1732642658386,13.45851581,230.91,230.89,0.5232148]
[1732642659287,17.78931581,230.91,230.89,0.5232148]
[1732642660281,23.776884,230.9,230.89,0.5232148]
[1732642660711,17.78931581,230.91,230.89,0.5232148]
[1732642663186,13.45851581,230.9,230.89,0.5232148]
[1732642663391,17.78901581,230.92,230.89,0.5232148]
[1732642663986,13.45851581,230.9,230.89,0.5232148]
[1732642667617,13.45851581,230.93,230.89,0.5232148]
[1732642667794,13.45851581,230.92,230.89,0.5232148]
[1732642668219,13.45851581,230.93,230.89,0.5232148]
[1732642668521,13.45851581,230.91,230.89,0.5232148]
[1732642670003,13.45851581,230.94,230.89,0.5232148]
[1732642670218,4.3295,230.97,230.9,13.45851581]
[1732642670511,3.15924637,230.97,230.91,13.45851581]
[1732642670814,13.45851581,230.96,230.89,4.8542148]
[1732642671713,13.45851581,230.96,230.89,0.5232148]
[1732642672012,17.78901581,230.92,230.89,0.5232148]
[1732642672212,13.45851581,230.9,230.89,0.5232148]
[1732642673020,17.78901581,230.92,230.89,0.5232148]
[1732642673610,13.45851581,230.9,230.89,0.5232148]
[1732642676314,17.78931581,230.9,230.89,0.5232148]
[1732642676618,20.96496553,230.9,230.89,0.5232148]
[1732642677203,44.74184953,230.9,230.89,0.5232148]
[1732642677403,49.82555816,230.9,230.89,0.5232148]
[1732642678017,41.56619981,230.9,230.89,0.5232148]
[1732642678325,51.9946407,230.9,230.89,0.5232148]
[1732642678504,28.2177567,230.9,230.89,0.5232148]
[1732642678707,28.2177567,230.9,230.8,13.45851581]
[1732642678708,20.0,230.87,230.8,17.79101581]
[1732642678926,3.17733815,230.86,230.83,13.45851581]
[1732642679227,21.72321883,230.89,230.82,13.45851581]
[1732642679402,3.17733815,230.88,230.82,13.45851581]
[1732642680300,3.17733815,230.88,230.84,13.45851581]
[1732642680623,3.17733815,230.88,230.82,17.79071581]
[1732642680801,13.45851581,230.87,230.8,13.45851581]
[1732642680997,3.17733815,230.86,230.8,13.45851581]
[1732642681323,3.17733815,230.85,230.8,13.45851581]
[1732642681625,3.17733815,230.85,230.78,15.1683]
[1732642681626,13.45851581,230.85,230.78,28.62681581]
[1732642681828,3.17733815,230.84,230.78,32.95981581]
[1732642682410,16.63585396,230.84,230.78,19.5013]
[1732642682606,3.17733815,230.83,230.79,13.45851581]
[1732642682804,3.17733815,230.84,230.81,13.45851581]
[1732642683119,3.17733815,230.85,230.8,13.45851581]
[1732642683310,3.17733815,230.86,230.81,13.45851581]
[1732642683512,5.10304673,230.87,230.78,19.5013]
[1732642683513,3.17733815,230.85,230.8,13.45851581]
[1732642683714,3.17733815,230.86,230.8,13.45851581]
[1732642683913,3.17733815,230.86,230.78,15.1683]
[1732642683914,13.45851581,230.84,230.78,15.1683]
[1732642684123,16.64834876,230.83,230.78,15.1683]
[1732642684313,16.64834876,230.83,230.72,10.8356]
[1732642684314,13.45851581,230.79,230.73,4.3339]
[1732642684513,13.45851581,230.8,230.73,17.79241581]
[1732642684736,13.45851581,230.85,230.78,13.45851581]
[1732642685028,16.64819113,230.84,230.76,13.45851581]
[1732642685231,3.18967532,230.83,230.76,13.45851581]
[1732642685414,13.45851581,230.84,230.77,13.45851581]
[1732642685415,3.18967532,230.82,230.77,13.45851581]
[1732642685728,3.18967532,230.83,230.78,13.45851581]
[1732642686131,3.18967532,230.83,230.79,13.45851581]
[1732642686510,8.29315584,230.86,230.79,13.45851581]
[1732642686727,3.18967532,230.85,230.79,13.45851581]
[1732642687026,4.3316,230.86,230.79,13.45851581]
[1732642687027,3.18967532,230.84,230.79,13.45851581]
[1732642687228,3.18967532,230.85,230.79,13.45851581]
[1732642687426,3.18967532,230.84,230.79,13.45851581]
[1732642687627,3.18967532,230.85,230.79,13.45851581]
[1732642687814,3.18967532,230.84,230.77,17.79181581]
[1732642688012,13.45851581,230.83,230.75,13.45851581]
[1732642688224,3.18967532,230.82,230.75,13.45851581]
[1732642688443,3.18967532,230.82,230.77,13.45851581]
[1732642688731,3.18967532,230.83,230.78,13.45851581]
[1732642688916,3.18967532,230.83,230.82,13.45851581]
[1732642689118,3.18967532,230.84,230.82,13.45851581]
[1732642689430,3.18967532,230.88,230.82,13.45851581]
[1732642689633,3.18967532,230.87,230.83,4.3321]
[1732642689828,3.18967532,230.86,230.82,13.45851581]
[1732642690023,3.18967532,230.88,230.82,13.45851581]
[1732642690229,3.18967532,230.87,230.82,13.45851581]
[1732642690531,3.18967532,230.86,230.82,13.45851581]
[1732642690743,3.19228231,230.88,230.82,13.45851581]
[1732642690938,3.19228231,230.87,230.81,4.3323]
[1732642691134,3.19228231,230.86,230.81,4.3323]
[1732642691315,3.19228231,230.85,230.81,4.3323]
[1732642691516,17.78931581,230.9,230.82,13.45851581]
[1732642691711,8.30502114,230.89,230.83,4.3321]
[1732642692043,8.30502114,230.89,230.86,13.45851581]
[1732642692044,3.1942389,230.88,230.86,13.45851581]
[1732642692528,3.1942389,230.92,230.86,13.45851581]
[1732642692715,3.1942389,230.91,230.86,13.45851581]
[1732642692911,3.1942389,230.9,230.86,13.45851581]
[1732642693139,5.11078224,230.93,230.86,13.45851581]
[1732642693140,3.1942389,230.89,230.86,13.45851581]
[1732642693339,23.11234731,230.94,230.88,13.45851581]
[1732642693340,5.11078224,230.92,230.88,13.45851581]
[1732642693632,7.53113009,230.91,230.84,13.45851581]
[1732642693841,3.20043009,230.9,230.84,13.45851581]
[1732642694136,3.20043009,230.89,230.84,13.45851581]
[1732642694342,9.44148224,230.91,230.84,13.45851581]
[1732642694343,3.20043009,230.88,230.84,13.45851581]
[1732642694523,3.20043009,230.87,230.84,13.45851581]
[1732642694718,3.20242326,230.89,230.84,13.45851581]
[1732642694919,3.20242326,230.88,230.84,13.45851581]
[1732642695137,3.20242326,230.87,230.84,13.45851581]
[1732642695335,5.12387722,230.9,230.86,13.45851581]
[1732642695540,3.2046726,230.89,230.86,13.45851581]
[1732642695719,3.2046726,230.88,230.86,17.79001581]
[1732642695920,3.2046726,230.87,230.86,17.79001581]
[1732642696121,8.32854982,230.91,230.86,17.79001581]
[1732642696432,8.32854982,230.9,230.84,17.79031581]
[1732642696731,8.32854982,230.89,230.84,17.79031581]
[1732642697047,3.2046726,230.88,230.84,17.79031581]
[1732642697336,3.2046726,230.87,230.84,17.79031581]
[1732642697546,5.12387722,230.89,230.86,13.45851581]
[1732642697746,5.12387722,230.91,230.88,17.78971581]
[1732642697951,5.3373721,230.93,230.9,13.45851581]
[1732642698238,8.34444065,230.92,230.9,13.45851581]
[1732642698428,8.34444065,230.91,230.88,4.3312]
[1732642698629,5.3373721,230.94,230.9,13.45851581]
[1732642698818,8.349423,230.93,230.88,4.3312]
[1732642699021,8.349423,230.92,230.83,4.3321]
[1732642699220,8.349423,230.91,230.83,4.3321]
[1732642699431,8.349423,230.9,230.82,15.6044]
[1732642699622,8.349423,230.89,230.82,15.6044]
[1732642699831,8.349423,230.88,230.76,15.1482]
[1732642700141,8.349423,230.87,230.76,15.1482]
[1732642700334,13.45851581,230.85,230.77,13.45851581]
[1732642700640,8.349423,230.84,230.79,13.45851581]
[1732642700847,8.349423,230.83,230.79,13.45851581]
[1732642701144,8.349423,230.82,230.79,13.45851581]
[1732642701322,8.349423,230.81,230.78,4.333]
[1732642701523,3.21517205,230.8,230.78,4.333]
[1732642701717,3.21517205,230.79,230.78,4.333]
[1732642705653,5.14001243,230.84,230.82,20.0]
[1732642705843,5.14097319,230.86,230.83,20.0]
[1732642706146,5.1414072,230.89,230.85,13.45851581]
[1732642706327,5.35862008,230.93,230.88,13.45851581]
[1732642706526,8.35431938,230.92,230.88,13.45851581]
[1732642706728,8.35431938,230.91,230.88,13.45851581]
[1732642707039,8.35431938,230.9,230.85,4.3318]
[1732642707225,5.14111962,230.92,230.89,13.45851581]
[1732642707424,5.35862008,230.94,230.89,13.45851581]
[1732642707620,8.34584182,230.93,230.89,13.45851581]
[1732642707842,8.34584182,230.92,230.89,13.45851581]
[1732642708033,8.34584182,230.91,230.89,13.45851581]